bitfinex/quotes_SOLUSD_20251116
["timestamp","ask_amount","ask_price","bid_price","bid_amount"]
[1763334007019,100.0,137.87,137.86,33.57703498]
[1763334007328,100.0,137.87,137.86,23.3712]
[1763334007532,100.0,137.87,137.86,49.60593074]
[1763334007734,100.0,137.87,137.86,10.20583498]
[1763334008518,100.0,137.84,137.83,16.03077072]
[1763334008713,100.0,137.84,137.83,26.2366057]
[1763334009028,100.0,137.84,137.83,33.57703498]
[1763334009216,100.0,137.84,137.83,23.3712]
[1763334009418,100.0,137.84,137.83,33.57703498]
[1763334010342,100.0,137.84,137.83,32.85703498]
[1763334010523,100.0,137.82,137.8,20.28552801]
[1763334010719,100.0,137.82,137.8,16.0918844]
[1763334010921,10.20583498,137.9,137.77,16.2918844]
[1763334010922,100.0,137.79,137.77,16.2918844]
[1763334011123,100.0,137.79,137.77,10.40583498]
[1763334011624,100.0,137.79,137.77,0.2]
[1763334012038,100.0,137.79,137.77,12.27831644]
[1763334012237,109.78882769,137.79,137.78,8.04549394]
[1763334012729,100.0,137.79,137.78,8.04549394]
[1763334012934,100.0,137.79,137.77,22.48415142]
[1763334013326,100.0,137.79,137.77,10.40583498]
[1763334013519,100.0,137.79,137.77,12.24121335]
[1763334013721,100.0,137.79,137.78,8.03161842]
[1763334014543,100.0,137.79,137.78,12.04121335]
[1763334014745,100.0,137.79,137.77,12.24121335]
[1763334014930,100.0,137.79,137.77,8.22305677]
[1763334015122,109.78882769,137.79,137.78,6.01188641]
[1763334015324,119.99466267,137.79,137.78,6.01188641]
[1763334015827,119.99466267,137.79,137.77,6.21188641]
[1763334016027,109.78882769,137.79,137.77,6.21188641]
[1763334016344,10.20583498,137.78,137.77,0.2]
[1763334016555,19.99466267,137.78,137.77,0.2]
[1763334016752,42.64586267,137.78,137.77,0.2]
[1763334016931,19.99466267,137.78,137.77,0.2]
[1763334018232,19.99466267,137.78,137.76,0.2]
[1763334018233,132.44002769,137.77,137.76,0.2]
[1763334018427,151.92734539,137.77,137.76,0.2]
[1763334018846,141.72151041,137.77,137.76,0.2]
[1763334019052,142.64586267,137.77,137.76,0.2]
[1763334020873,109.78882769,137.73,137.72,0.2]
[1763334021353,119.99466267,137.73,137.72,0.2]
[1763334023132,129.27171861,137.73,137.72,0.2]
[1763334023356,109.78882769,137.69,137.63,0.1]
[1763334023651,119.99466267,137.69,137.63,0.1]
[1763334024349,123.08032153,137.69,137.63,0.1]
[1763334024570,119.99466267,137.69,137.63,0.1]
[1763334025051,109.78882769,137.69,137.66,10.20583498]
[1763334025252,100.0,137.69,137.68,10.30583498]
[1763334025451,100.0,137.69,137.68,0.1]
[1763334026151,109.78882769,137.69,137.68,0.1]
[1763334028158,119.99466267,137.69,137.68,0.1]
[1763334029728,118.99466267,137.69,137.68,0.1]
[1763334030555,128.27614539,137.69,137.68,0.1]
[1763334032439,109.78882769,137.64,137.63,0.1]
[1763334032643,129.27614539,137.64,137.63,0.1]
[1763334033159,139.48198037,137.64,137.63,0.1]
[1763334033466,147.9202098,137.64,137.63,0.1]
[1763334033667,100.0,137.48,137.47,0.2]
[1763334034284,109.78882769,137.48,137.47,0.2]
[1763334035136,119.99466267,137.48,137.47,0.2]
[1763334035341,142.64586267,137.48,137.47,0.2]
[1763334036047,132.44002769,137.48,137.47,0.2]
[1763334036269,142.64586267,137.48,137.47,0.2]
[1763334036791,100.0,137.48,137.47,11.08583498]
[1763334037068,100.0,137.48,137.47,0.88]
[1763334037283,100.0,137.48,137.47,11.08583498]
[1763334038053,100.0,137.48,137.47,0.2]
[1763334039175,109.78882769,137.48,137.47,0.2]
[1763334039349,119.99466267,137.48,137.47,0.2]
[1763334040050,100.0,137.43,137.42,10.58583498]
[1763334040551,100.0,137.35,137.34,0.06002579]
[1763334040763,100.0,137.35,137.34,20.05468846]
[1763334040950,100.0,137.35,137.34,9.84885348]
[1763334041269,22.6512,137.5,137.34,20.05468846]
[1763334041475,100.0,137.42,137.4,10.20583498]
[1763334041670,100.0,137.42,137.41,9.78882769]
[1763334041858,952.10479629,137.6,137.43,22.6512]
[1763334042052,100.0,137.44,137.43,22.6512]
[1763334042568,100.0,137.44,137.43,33.53703498]
[1763334042863,100.0,137.44,137.43,23.3312]
[1763334043063,100.0,137.44,137.43,10.88583498]
[1763334043371,100.0,137.44,137.43,10.20583498]
[1763334044361,100.0,137.44,137.43,10.88583498]
[1763334045278,0.3,137.6,137.47,22.6512]
[1763334045473,100.0,137.51,137.5,10.20583498]
[1763334045974,100.0,137.51,137.5,10.88583498]
[1763334049980,100.0,137.51,137.5,21.09166996]
[1763334050285,100.0,137.54,137.53,22.6512]
[1763334050459,100.0,137.54,137.53,32.85703498]
[1763334050649,100.0,137.54,137.53,33.53703498]
[1763334053268,100.0,137.54,137.53,0.68]
[1763334053575,100.0,137.54,137.53,10.88583498]
[1763334053760,100.0,137.53,137.52,10.20583498]
[1763334053962,100.0,137.44,137.42,6.01188641]
[1763334054161,100.0,137.44,137.43,10.20583498]
[1763334054361,100.0,137.44,137.43,19.99466267]
[1763334054555,100.0,137.44,137.43,20.67466267]
[1763334055273,100.0,137.44,137.43,16.4807141]
[1763334055456,100.0,137.44,137.43,26.68654908]
[1763334056160,100.0,137.44,137.43,20.67466267]
[1763334056677,100.0,137.44,137.43,10.46882769]
[1763334056862,100.0,137.44,137.43,20.67466267]
[1763334058382,100.0,137.44,137.43,28.69771944]
[1763334058763,100.0,137.44,137.43,10.88583498]
[1763334058970,100.0,137.44,137.43,16.87147213]
[1763334059169,100.0,137.44,137.43,33.53703498]
[1763334059370,100.0,137.44,137.43,39.52794824]
[1763334060161,100.0,137.44,137.43,10.20583498]
[1763334060387,100.0,137.44,137.41,5.99091326]
[1763334060388,100.0,137.42,137.41,5.99091326]
[1763334060569,32.44002769,137.5,137.34,0.21816097]
[1763334060570,100.0,137.39,137.38,6.69091326]
[1763334060754,100.0,137.39,137.37,8.02305677]
[1763334060958,100.0,137.39,137.37,8.72305677]
[1763334061175,100.0,137.39,137.38,0.7]
[1763334061373,100.0,137.39,137.38,33.14002769]
[1763334061660,10.20583498,137.6,137.4,32.44002769]
[1763334061661,100.0,137.41,137.4,32.44002769]
[1763334061875,100.0,137.41,137.4,44.4293981]
[1763334062159,100.0,137.41,137.4,45.1293981]
[1763334062363,100.0,137.41,137.4,65.54106806]
[1763334062881,100.0,137.41,137.4,13.8988423]
[1763334063086,100.0,137.41,137.4,5.90145138]
[1763334063385,100.0,137.41,137.39,6.00094387]
[1763334063566,100.0,137.39,137.38,11.90239525]
[1763334063881,100.0,137.39,137.38,6.00094387]
[1763334064073,100.0,137.37,137.35,6.00094387]
[1763334064257,100.0,137.37,137.33,0.1]
[1763334064258,100.0,137.34,137.33,0.1]
[1763334064457,128.55265138,137.34,137.33,0.1]
[1763334064683,100.0,137.29,137.28,6.10094387]
[1763334065185,100.0,137.29,137.28,0.1]
[1763334065365,100.2,137.29,137.28,0.1]
[1763334065684,115.89027907,137.29,137.28,0.1]
[1763334067082,138.54147907,137.29,137.28,0.1]
[1763334067288,100.0,137.29,137.28,0.8]
[1763334067497,100.0,137.29,137.28,12.70239525]
[1763334069219,100.0,137.29,137.28,6.70145138]
[1763334069364,100.0,137.29,137.28,6.00145138]
[1763334070068,100.0,137.29,137.28,0.1]
[1763334070069,106.10145138,137.29,137.28,0.1]
[1763334070297,115.89027907,137.29,137.28,0.1]
[1763334070886,100.0,137.29,137.28,0.1]
[1763334073782,109.78882769,137.29,137.28,0.1]
[1763334074620,100.0,137.29,137.28,0.1]
[1763334075511,100.0,137.29,137.28,6.70145138]
[1763334076105,100.0,137.29,137.28,0.1]
[1763334076617,100.0,137.29,137.28,6.00145138]
[1763334076911,100.0,137.29,137.28,0.1]
[1763334077119,100.2,137.29,137.28,0.1]
[1763334077323,109.98882769,137.29,137.28,0.1]
[1763334077634,115.89027907,137.29,137.28,0.1]
[1763334078595,121.79173045,137.29,137.28,0.1]
[1763334078806,100.0,137.17,137.16,5.90145138]
[1763334079125,100.0,137.17,137.15,1.93593088]
[1763334079126,100.0,137.17,137.15,7.83738226]
[1763334080406,100.0,137.17,137.15,1.93593088]
[1763334080618,32.64002769,137.16,137.15,1.93593088]
[1763334080818,38.54147907,137.16,137.15,1.93593088]
[1763334081117,9.98882769,137.16,137.15,1.93593088]
[1763334081322,15.89027907,137.16,137.15,1.93593088]
[1763334081837,100.0,136.99,136.98,6.21371181]
[1763334082121,100.0,136.99,136.98,34.76636319]
[1763334082319,100.0,136.99,136.98,28.75265138]
[1763334082521,100.0,136.99,136.98,29.47265138]
[1763334083126,100.0,136.99,136.98,16.61027907]
[1763334083328,100.0,137.02,137.01,32.44002769]
[1763334083530,100.0,137.06,137.05,22.6512]
[1763334083691,100.0,137.07,137.06,9.78882769]
[1763334084001,100.0,137.07,137.06,23.3712]
[1763334084329,100.0,137.07,137.06,29.27265138]
[1763334084508,100.0,137.07,137.06,39.06147907]
[1763334085501,100.0,137.1,137.09,22.6512]
[1763334085695,100.0,137.1,137.09,44.24293045]
[1763334086018,100.0,137.11,137.1,9.78882769]
[1763334086219,100.0,137.11,137.1,22.31173045]
[1763334087602,100.0,137.14,137.13,32.44002769]
[1763334087815,100.0,137.14,137.13,38.34147907]
[1763334087998,100.0,137.14,137.13,39.06147907]
[1763334088902,100.0,137.14,137.13,16.41027907]
[1763334089220,100.0,137.14,137.13,22.31173045]
[1763334089425,100.0,137.14,137.13,24.31173044]
[1763334089606,100.0,137.16,137.15,32.44002769]
[1763334089947,100.0,137.16,137.15,44.24293045]
[1763334090126,100.0,137.17,137.16,9.78882769]
[1763334090324,50.0,137.17,137.16,22.26173045]
[1763334090501,100.0,137.17,137.16,22.26173045]
[1763334091328,100.0,137.2,137.19,22.6512]
[1763334091532,100.0,137.2,137.19,44.24293045]
[1763334091732,100.0,137.2,137.19,44.91293045]
[1763334093816,100.0,137.2,137.19,29.22265138]
[1763334094214,100.0,137.2,137.19,35.12410276]
[1763334094410,100.0,137.2,137.19,23.3212]
[1763334094727,100.0,137.2,137.19,35.12410276]
[1763334095111,100.0,137.21,137.2,9.78882769]
[1763334095313,100.0,137.21,137.2,21.59173045]
[1763334095515,0.2,137.33,137.2,21.59173045]
[1763334095516,100.0,137.24,137.23,22.6512]
[1763334095706,100.0,137.24,137.23,39.01147907]
[1763334096927,100.0,137.18,137.16,5.97281483]
[1763334097137,100.0,137.11,137.1,0.67]
[1763334097451,100.0,137.11,137.1,5.90145138]
[1763334097938,100.0,137.06,137.04,12.54426621]
[1763334098105,100.0,137.06,137.05,6.57145138]
[1763334099018,100.0,137.06,137.05,29.22265138]
[1763334099311,100.0,137.03,137.01,5.97281483]
[1763334099633,100.0,137.03,137.02,12.47290276]
[1763334099835,22.6512,137.14,137.02,12.47290276]
[1763334099836,0.2,137.12,137.02,12.47290276]
[1763334100136,973.23162284,137.29,137.05,17.76164251]
[1763334100137,100.0,137.06,137.05,17.76164251]
[1763334100339,0.2,137.18,137.06,1.99999999]
[1763334100642,5.90145138,137.28,137.08,38.44483772]
[1763334100643,100.0,137.09,137.08,38.44483772]
[1763334101108,100.0,137.09,137.08,32.44002769]
[1763334101315,100.0,137.09,137.08,44.91293045]
[1763334102245,100.0,137.09,137.08,54.91032136]
[1763334102439,100.0,137.09,137.08,54.43310516]
[1763334103244,100.0,137.09,137.08,46.41293044]
[1763334103928,100.0,137.09,137.08,46.55048791]
[1763334104234,100.0,137.09,137.08,38.51147907]
[1763334104417,100.0,137.09,137.08,46.56285484]
[1763334104738,100.0,137.09,137.08,38.51147907]
[1763334104975,100.0,137.09,137.08,5.90145138]
[1763334105129,100.0,137.09,137.08,11.94357453]
[1763334105332,100.2,137.09,137.08,6.04212315]
[1763334105533,100.0,137.06,137.04,6.04212315]
[1763334105845,100.0,137.06,137.05,5.47515515]
[1763334106015,22.6512,137.12,137.03,6.04212315]
[1763334106016,100.0,137.04,137.03,6.04212315]
[1763334107122,100.0,137.04,137.03,11.5172783]
[1763334107823,100.0,137.04,137.03,5.47515515]
[1763334108229,100.0,137.04,137.03,13.52676725]
[1763334109033,100.0,137.04,137.03,52.11195009]
[1763334109232,100.0,137.04,137.03,56.0497084]
[1763334109461,100.0,137.05,137.04,9.78882769]
[1763334109633,0.2,137.15,137.04,21.40913799]
[1763334109972,100.0,137.05,137.04,15.26398284]
[1763334110531,100.0,137.05,137.04,32.44002769]
[1763334110734,100.0,137.05,137.04,45.24066256]
[1763334110961,100.0,137.05,137.04,56.19097286]
[1763334111136,100.0,137.05,137.04,45.24066256]
[1763334111332,100.0,137.05,137.04,11.6203103]
[1763334111530,100.0,137.05,137.04,10.9503103]
[1763334111734,100.0,137.03,137.02,12.13063487]
[1763334111932,100.0,137.03,137.02,5.47515515]
[1763334112558,100.0,137.03,137.02,12.13063487]
[1763334112760,100.0,137.03,137.02,5.47515515]
[1763334113063,100.0,137.03,137.0,6.07112342]
[1763334113064,50.0,137.01,137.0,6.07112342]
[1763334113358,100.0,137.01,137.0,11.54627857]
[1763334113558,100.0,137.01,137.0,5.47515515]
[1763334113737,100.0,137.01,137.0,13.56647003]
[1763334113939,100.0,137.01,137.0,5.47515515]
[1763334114139,100.0,137.01,136.99,8.09131488]
[1763334114478,100.2,137.01,137.0,6.06924752]
[1763334114763,100.2,137.01,136.99,11.54440267]
[1763334115073,100.0,136.99,136.98,6.16924752]
[1763334115277,132.44002769,136.99,136.98,0.2]
[1763334115766,115.26398284,136.99,136.98,0.2]
[1763334116064,109.78882769,136.95,136.94,0.1]
[1763334116274,109.78882769,136.87,136.84,0.1]
[1763334116481,115.26398284,136.87,136.84,0.1]
[1763334116648,124.87779958,136.87,136.84,0.1]
[1763334116969,121.00740292,136.87,136.84,0.1]
[1763334117150,118.81795213,136.87,136.84,0.1]
[1763334117757,100.0,136.87,136.86,10.96505532]
[1763334121372,118.81795213,136.85,136.84,0.1]
[1763334121665,138.36487763,136.85,136.84,0.1]
[1763334121851,129.33575319,136.85,136.84,0.1]
[1763334122165,100.0,136.85,136.84,0.1]
[1763334122377,100.0,136.85,136.84,0.81]
[1763334122580,100.0,136.85,136.84,9.83912444]
[1763334123072,17.66454901,137.16,136.88,32.44002769]
[1763334123073,100.0,136.89,136.88,32.44002769]
[1763334123254,28.54967044,137.16,136.89,9.78882769]
[1763334123255,100.0,136.9,136.89,9.78882769]
[1763334123438,100.0,136.9,136.89,20.95565639]
[1763334124941,10.4568287,137.05,136.92,32.44002769]
[1763334125142,33.55992914,137.15,136.92,22.6512]
[1763334125143,100.0,136.94,136.92,22.6512]
[1763334125359,100.0,136.94,136.93,23.3612]
[1763334125758,100.0,136.94,136.93,33.15002769]
[1763334126247,100.0,136.85,136.84,32.54002769]
[1763334126473,100.0,136.85,136.84,44.99685638]
[1763334126650,100.0,136.85,136.84,45.70685638]
[1763334127575,100.0,136.86,136.85,11.78882768]
[1763334127869,100.0,136.89,136.88,34.44002768]
[1763334128044,22.6512,137.03,136.88,44.89685638]
[1763334128248,46.97512143,137.16,136.88,34.44002768]
[1763334128249,100.0,136.89,136.88,34.44002768]
[1763334128443,10.4568287,137.16,136.92,1.99999999]
[1763334128671,100.0,136.93,136.92,34.44002768]
[1763334129576,100.0,136.93,136.92,45.60685638]
[1763334129782,100.0,136.93,136.92,33.15002769]
[1763334130000,100.0,136.85,136.82,1.99999999]
[1763334130152,100.0,136.85,136.84,10.5568287]
[1763334130471,100.0,136.85,136.84,22.34565638]
[1763334130677,100.0,136.85,136.84,23.05565638]
[1763334131473,100.0,136.87,136.86,1.99999999]
[1763334131677,100.0,136.87,136.86,22.24565638]
[1763334131973,100.0,136.88,136.87,11.78882768]
[1763334132192,100.0,136.91,136.9,11.78882768]
[1763334132386,100.0,136.94,136.93,34.44002768]
[1763334132687,50.0,136.94,136.93,55.35368508]
[1763334132867,10.26978499,137.17,136.97,32.44002769]
[1763334132868,100.0,136.98,136.97,32.44002769]
[1763334133067,100.0,136.88,136.87,9.78882769]
[1763334133403,100.0,136.88,136.87,10.4568287]
[1763334133571,100.0,136.85,136.84,0.1]
[1763334134068,22.6512,136.98,136.84,0.1]
[1763334134279,100.0,136.87,136.86,32.44002769]
[1763334134671,100.0,136.95,136.94,22.6512]
[1763334134877,100.0,136.95,136.94,42.89685639]
[1763334135060,100.0,136.95,136.94,33.8180287]
[1763334135266,100.0,136.95,136.94,0.71]
[1763334135479,100.0,136.95,136.94,11.1668287]
[1763334135772,0.2,137.22,136.95,9.78882769]
[1763334135980,0.2,137.22,136.95,33.15002769]
[1763334135981,100.0,136.96,136.95,33.15002769]
[1763334136181,100.0,136.96,136.95,32.44002769]
[1763334136365,22.6512,137.07,136.95,32.44002769]
[1763334136562,100.0,136.96,136.95,32.44002769]
[1763334136870,100.0,136.94,136.93,9.78882769]
[1763334137070,100.0,136.94,136.93,22.24565638]
[1763334137302,100.0,136.94,136.93,22.96565638]
[1763334137470,100.0,136.97,136.96,22.6512]
[1763334137673,100.0,136.97,136.96,42.89685639]
[1763334137996,100.0,136.97,136.96,43.61685639]
[1763334138364,100.0,137.01,137.0,32.44002769]
[1763334138605,100.0,137.01,137.0,42.89685639]
[1763334138810,100.0,136.97,136.96,0.72]
[1763334139008,100.0,136.97,136.88,16.0918844]
[1763334139009,100.0,136.91,136.89,8.09131488]
[1763334139207,9.5376953,137.1,136.85,0.72]
[1763334139208,100.0,136.87,136.85,0.72]
[1763334139670,22.6512,136.98,136.87,22.6512]
[1763334139874,100.0,136.88,136.87,22.6512]
[1763334140093,100.0,136.88,136.87,42.53134256]
[1763334140391,100.0,136.88,136.87,10.2576953]
[1763334140594,100.0,136.86,136.84,8.11079191]
[1763334140787,100.0,136.86,136.85,0.72]
[1763334141505,100.0,136.86,136.84,0.1]
[1763334142089,19.32652299,136.85,136.84,0.1]
[1763334142285,41.97772299,136.85,136.84,0.1]
[1763334142604,41.97772299,136.85,136.75,0.1]
[1763334142605,100.0,136.76,136.75,0.1]
[1763334142784,100.0,136.76,136.75,10.3576953]
[1763334142980,100.0,136.76,136.75,32.2888953]
[1763334143414,100.0,136.76,136.75,9.6376953]
[1763334143917,100.0,136.76,136.75,10.3576953]
[1763334144275,100.0,136.8,136.79,32.44002769]
[1763334144495,100.0,136.8,136.79,51.51541829]
[1763334144696,100.0,136.8,136.79,52.23541829]
[1763334144887,36.16513104,137.07,136.83,22.6512]
[1763334145091,100.0,136.84,136.83,32.44002769]
[1763334145676,100.0,136.84,136.83,33.16002769]
[1763334145983,100.0,136.84,136.82,8.01079191]
[1763334146183,100.0,136.8,136.79,22.6512]
[1763334146404,100.0,136.8,136.79,33.10657324]
[1763334146597,100.0,136.8,136.79,33.82657324]
[1763334147894,100.0,136.84,136.83,32.44002769]
[1763334148108,100.0,136.85,136.84,11.78882768]
[1763334148320,100.0,136.85,136.84,22.96420092]
[1763334148540,100.0,136.88,136.87,32.44002769]
[1763334148739,100.0,136.88,136.87,42.89540093]
[1763334149033,100.0,136.88,136.87,51.6566497]
[1763334149335,100.0,136.88,136.86,8.04124877]
[1763334149539,100.0,136.85,136.84,22.6512]
[1763334149736,100.0,136.85,136.84,42.89540093]
[1763334150049,100.0,136.85,136.84,50.9366497]
[1763334150403,100.0,136.85,136.84,41.17127646]
[1763334150724,100.0,136.83,136.81,8.04124877]
[1763334150921,100.0,136.79,136.78,8.04124877]
[1763334151115,100.0,136.79,136.78,10.45537324]
[1763334151903,100.0,136.76,136.75,0.1]
[1763334152103,100.0,136.76,136.75,22.7512]
[1763334152300,100.0,136.76,136.75,33.20657324]
[1763334152502,100.0,136.76,136.75,10.55537324]
[1763334153154,46.69524728,136.98,136.75,10.55537324]
[1763334153155,0.2,136.98,136.78,22.6512]
[1763334153304,0.2,136.98,136.82,32.44002769]
[1763334153305,100.0,136.83,136.82,32.44002769]
[1763334153921,100.0,136.83,136.82,33.13002769]
[1763334154128,100.0,136.83,136.82,45.22311241]
[1763334154312,100.0,136.83,136.82,33.13002769]
[1763334154635,100.0,136.83,136.82,51.65574157]
[1763334154808,100.0,136.83,136.82,22.6512]
[1763334155010,100.0,136.83,136.82,33.10657324]
[1763334155621,0.2,136.98,136.83,9.78882769]
[1763334155824,100.0,136.84,136.83,21.88191241]
[1763334156015,100.0,136.84,136.83,32.35100014]
[1763334156331,50.0,136.87,136.86,22.6512]
[1763334156532,100.0,136.87,136.86,33.05138375]
[1763334156916,100.0,136.87,136.86,20.24420093]
[1763334157239,100.0,136.87,136.86,20.93420093]
[1763334157407,50.0,136.87,136.86,20.93420093]
[1763334157613,100.0,136.87,136.86,43.58540093]
[1763334157808,100.0,136.87,136.86,33.10657324]
[1763334158122,100.0,136.82,136.8,0.69]
[1763334158436,100.0,136.8,136.78,16.0918844]
[1763334158730,0.2,136.98,136.78,16.0918844]
[1763334158731,100.0,136.79,136.78,8.10066678]
[1763334158938,100.0,136.79,136.77,8.10066678]
[1763334159121,100.0,136.79,136.78,8.10066678]
[1763334159340,100.0,136.79,136.76,8.10066678]
[1763334159524,100.0,136.77,136.75,0.1]
[1763334160733,42.89540093,136.76,136.75,0.1]
[1763334161036,20.24420093,136.76,136.75,0.1]
[1763334161648,20.24420093,136.76,136.7,0.1]
[1763334161649,132.44002769,136.71,136.7,0.1]
[1763334161846,100.0,136.71,136.7,0.1]
[1763334163348,109.78882769,136.71,136.7,0.1]
[1763334163806,120.24420093,136.71,136.7,0.1]
[1763334164435,109.78882769,136.71,136.7,0.1]
[1763334164635,109.78882769,136.71,136.63,0.1]
[1763334164636,132.44002769,136.64,136.63,0.1]
[1763334164825,142.89540093,136.64,136.63,0.1]
[1763334165068,120.24420093,136.64,136.63,0.1]
[1763334165228,109.78882769,136.64,136.63,0.1]
[1763334165432,120.24420093,136.64,136.63,0.1]
[1763334166129,120.24420093,136.64,136.57,2.03593088]
[1763334166130,100.0,136.58,136.57,2.03593088]
[1763334166329,100.0,136.37,136.36,8.10066678]
[1763334166530,22.6512,136.45,136.33,8.79066678]
[1763334166531,100.0,136.35,136.33,8.79066678]
[1763334166730,100.0,136.31,136.28,10.72659766]
[1763334166919,100.0,136.31,136.28,1.93593088]
[1763334167327,142.89540093,136.31,136.28,1.93593088]
[1763334167653,109.78882769,136.31,136.28,1.93593088]
[1763334167952,100.0,136.31,136.28,2.15017775]
[1763334168158,100.0,136.29,136.28,1.93593088]
[1763334168345,142.89540093,136.29,136.28,1.93593088]
[1763334168642,109.78882769,136.29,136.28,1.93593088]
[1763334169343,120.24420093,136.29,136.28,1.93593088]
[1763334169842,120.24420093,136.29,136.22,0.12005159]
[1763334169843,109.78882769,136.23,136.22,0.12005159]
[1763334170038,142.89540093,136.23,136.22,0.12005159]
[1763334170227,100.0,136.23,136.22,0.12005159]
[1763334170440,132.44002769,136.23,136.22,0.12005159]
[1763334170644,100.0,136.23,136.22,0.12005159]
[1763334170815,109.78882769,136.23,136.22,0.12005159]
[1763334171142,100.0,136.21,136.2,0.1]
[1763334171318,110.45537324,136.21,136.2,0.1]
[1763334171718,100.0,136.1,136.08,0.1809939]
[1763334172015,100.0,136.1,136.08,10.63636714]
[1763334172246,19.49926771,136.27,136.09,0.87751847]
[1763334172558,100.0,136.01,136.0,0.87665928]
[1763334172743,100.0,136.01,136.0,12.64203251]
[1763334172951,110.45537324,136.15,136.14,0.1]
[1763334173152,100.0,136.15,136.14,0.1]
[1763334173327,22.6512,136.22,136.15,0.09003869]
[1763334173328,109.78882769,136.16,136.15,0.09003869]
[1763334173528,120.24420093,136.16,136.15,0.09003869]
[1763334173728,109.78882769,136.16,136.15,0.09003869]
[1763334174031,120.24420093,136.16,136.15,0.09003869]
[1763334174230,9.78882769,136.15,136.14,0.1]
[1763334174440,100.0,136.0,135.99,1.93593088]
[1763334175247,120.24420093,136.0,135.99,1.93593088]
[1763334175448,120.24420093,136.0,135.81,0.15006449]
[1763334175449,100.0,135.82,135.81,0.15006449]
[1763334175624,100.0,135.82,135.81,10.60543773]
[1763334175820,50.0,135.82,135.81,0.15006449]
[1763334176068,100.0,135.82,135.81,0.15006449]
[1763334176350,3.86067547,135.98,135.81,0.84006449]
[1763334176668,22.6512,135.94,135.83,0.15006449]
[1763334176820,100.0,135.85,135.84,0.15017497]
[1763334177020,100.0,135.71,135.7,1.93593088]
[1763334177619,9.78882769,135.95,135.72,1.99999999]
[1763334177819,33.55992914,135.96,135.68,1.43593087]
[1763334177820,100.0,135.69,135.68,1.43593087]
[1763334178333,2.0,135.96,135.76,1.43593087]
[1763334178654,50.0,135.7,135.69,0.69]
[1763334178842,100.0,135.7,135.69,0.69]
[1763334179044,100.0,135.7,135.69,11.14537324]
[1763334179249,22.6512,135.87,135.68,1.43593087]
[1763334179419,100.0,135.73,135.72,10.45537324]
[1763334179625,100.0,135.73,135.72,32.13550504]
[1763334179922,2.0,135.95,135.79,32.44002769]
[1763334179923,100.0,135.8,135.79,32.44002769]
[1763334180119,100.0,135.79,135.78,9.78882769]
[1763334180322,100.0,135.82,135.81,32.44002769]
[1763334180651,10.45537324,136.08,135.81,32.44002769]
[1763334180652,100.0,135.88,135.87,9.78882769]
[1763334180821,2.0,136.09,135.92,9.78882769]
[1763334181023,100.0,135.96,135.95,32.44002769]
[1763334181419,951.74040856,136.21,135.85,9.78882769]
[1763334181420,100.0,135.86,135.85,9.78882769]
[1763334181621,100.0,135.86,135.85,0.2338242]
[1763334182029,100.0,135.86,135.85,0.9538242]
[1763334182340,100.0,135.89,135.88,22.6512]
[1763334182562,100.0,135.89,135.88,20.24420093]
[1763334182724,100.0,135.9,135.89,9.78882769]
[1763334182923,100.0,135.86,135.85,0.2338242]
[1763334183134,100.0,135.86,135.85,10.68919744]
[1763334183462,100.0,135.86,135.66,4.31180924]
[1763334183463,100.0,135.67,135.66,4.31180924]
[1763334183626,100.0,135.68,135.67,6.4905588]
[1763334183828,100.0,135.68,135.67,29.8617588]
[1763334184158,50.0,135.68,135.67,17.66593204]